[Event "Titled Tuesday Blitz January 31 Late 2023"]
[White "Hansen, Eric"]
[Black "Papasimakopoulos, Alexandros"]
[WhiteFideId "2606771"]
[BlackFideId "4244125"]
[WhiteElo "2609"]
[BlackElo "2401"]
[Result "1-0"]
[Round "05"]
[TimeControl "180+2"]
[Date "2023.01.31"]
[WhiteClock "0:01:58"]
[BlackClock "0:00:52"]

1. Nf3 {[%clk 0:03:00]}  d5 {[%clk 0:02:13]} 2. g3 {[%clk 0:03:00]}  Nf6 {[%clk 0:02:12]} 3. Bg2 {[%clk 0:03:00]}  c6 {[%clk 0:02:13]} 4. O-O {[%clk 0:03:01]}  Bf5 {[%clk 0:02:13]} 5. d3 {[%clk 0:03:01]}  e6 {[%clk 0:02:13]} 6. c4 {[%clk 0:03:02]}  Nbd7 {[%clk 0:02:12]} 7. Qb3 {[%clk 0:03:02]}  Qb6 {[%clk 0:02:12]} 8. Be3 {[%clk 0:03:00]}  Bc5 {[%clk 0:02:07]} 9. Bxc5 {[%clk 0:02:59]}  Nxc5 {[%clk 0:02:06]} 10. Qa3 {[%clk 0:02:55]}  dxc4 {[%clk 0:01:58]} 11. Ne5 {[%clk 0:02:55]}  O-O {[%clk 0:01:39]} 12. Nxc4 {[%clk 0:02:55]}  Qb5 {[%clk 0:01:40]} 13. Nc3 {[%clk 0:02:54]}  Qa6 {[%clk 0:01:33]} 14. Qxc5 {[%clk 0:02:54]}  Rac8 {[%clk 0:01:33]} 15. Nd6 {[%clk 0:02:50]}  b6 {[%clk 0:01:33]} 16. Qa3 {[%clk 0:02:45]}  Qxa3 {[%clk 0:01:32]} 17. bxa3 {[%clk 0:02:46]}  Rc7 {[%clk 0:01:33]} 18. Rac1 {[%clk 0:02:44]}  Bg6 {[%clk 0:01:31]} 19. Ncb5 {[%clk 0:02:42]}  Rd7 {[%clk 0:01:31]} 20. Bxc6 {[%clk 0:02:43]}  Re7 {[%clk 0:01:31]} 21. Bf3 {[%clk 0:02:38]}  a6 {[%clk 0:01:30]} 22. Nc3 {[%clk 0:02:30]}  b5 {[%clk 0:01:20]} 23. a4 {[%clk 0:02:24]}  b4 {[%clk 0:01:20]} 24. Nce4 {[%clk 0:02:23]}  Nd5 {[%clk 0:01:20]} 25. a5 {[%clk 0:02:17]}  Rd7 {[%clk 0:01:20]} 26. Rc6 {[%clk 0:02:16]}  Ra8 {[%clk 0:01:14]} 27. Nc5 {[%clk 0:02:09]}  Rda7 {[%clk 0:01:13]} 28. Bxd5 {[%clk 0:02:07]}  exd5 {[%clk 0:01:14]} 29. Rb1 {[%clk 0:02:08]}  Bh5 {[%clk 0:01:10]} 30. f3 {[%clk 0:02:07]}  g5 {[%clk 0:01:06]} 31. Rxb4 {[%clk 0:02:06]}  Re7 {[%clk 0:01:00]} 32. Kf2 {[%clk 0:02:06]}  Bg6 {[%clk 0:01:00]} 33. Rxa6 {[%clk 0:02:01]}  Rd8 {[%clk 0:00:59]} 34. Rc6 {[%clk 0:02:01]}  h5 {[%clk 0:00:51]} 35. a6 {[%clk 0:02:00]}  h4 {[%clk 0:00:52]} 36. Rb7 {[%clk 0:01:58]} 1-0


[Site "https://www.chess.com"]

[Event "Titled Tuesday Blitz January 31 Late 2023"]
[White "Sokolovsky, Yahli"]
[Black "Ivic, Velimir"]
[WhiteFideId "2820242"]
[BlackFideId "950122"]
[WhiteElo "2461"]
[BlackElo "2595"]
[Result "1-0"]
[Round "05"]
[TimeControl "180+2"]
[Date "2023.01.31"]
[WhiteClock "0:00:12"]
[BlackClock "0:00:11"]

1. b3 {[%clk 0:03:00]}  e5 {[%clk 0:02:59]} 2. Bb2 {[%clk 0:03:01]}  Nc6 {[%clk 0:03:00]} 3. e3 {[%clk 0:03:01]}  Nf6 {[%clk 0:02:59]} 4. Nf3 {[%clk 0:03:01]}  e4 {[%clk 0:02:57]} 5. Nd4 {[%clk 0:03:02]}  Bc5 {[%clk 0:02:57]} 6. Nxc6 {[%clk 0:02:48]}  dxc6 {[%clk 0:02:58]} 7. d4 {[%clk 0:02:40]}  Bd6 {[%clk 0:02:54]} 8. Be2 {[%clk 0:02:35]}  h5 {[%clk 0:02:51]} 9. h3 {[%clk 0:02:32]}  Bf5 {[%clk 0:02:49]} 10. c4 {[%clk 0:02:32]}  b6 {[%clk 0:02:48]} 11. Nc3 {[%clk 0:02:32]}  Qe7 {[%clk 0:02:47]} 12. Qc2 {[%clk 0:02:31]}  h4 {[%clk 0:02:46]} 13. O-O-O {[%clk 0:02:28]}  Bg6 {[%clk 0:02:35]} 14. Kb1 {[%clk 0:02:23]}  O-O {[%clk 0:02:35]} 15. Rhg1 {[%clk 0:02:04]}  Qe6 {[%clk 0:02:28]} 16. g4 {[%clk 0:01:55]}  hxg3 {[%clk 0:02:22]} 17. fxg3 {[%clk 0:01:56]}  Qxh3 {[%clk 0:02:20]} 18. Rh1 {[%clk 0:01:42]}  Qxg3 {[%clk 0:02:20]} 19. c5 {[%clk 0:01:18]}  bxc5 {[%clk 0:02:17]} 20. Rdg1 {[%clk 0:01:18]}  Qxe3 {[%clk 0:02:16]} 21. Bc4 {[%clk 0:00:43]}  Bh7 {[%clk 0:01:36]} 22. Qg2 {[%clk 0:00:31]}  Qg3 {[%clk 0:01:18]} 23. Qxg3 {[%clk 0:00:15]}  Bxg3 {[%clk 0:01:19]} 24. Rxg3 {[%clk 0:00:16]}  cxd4 {[%clk 0:01:19]} 25. Ne2 {[%clk 0:00:14]}  c5 {[%clk 0:01:18]} 26. Ba3 {[%clk 0:00:14]}  Rfe8 {[%clk 0:01:16]} 27. Nf4 {[%clk 0:00:09]}  Re5 {[%clk 0:01:01]} 28. Rhg1 {[%clk 0:00:09]}  Ne8 {[%clk 0:00:54]} 29. Bc1 {[%clk 0:00:06]}  Rd8 {[%clk 0:00:53]} 30. Rh3 {[%clk 0:00:04]}  Bf5 {[%clk 0:00:48]} 31. Rh4 {[%clk 0:00:03]}  e3+ {[%clk 0:00:44]} 32. Bd3 {[%clk 0:00:02]}  Bxd3+ {[%clk 0:00:28]} 33. Nxd3 {[%clk 0:00:03]}  Rf5 {[%clk 0:00:29]} 34. Rgh1 {[%clk 0:00:03]}  Kf8 {[%clk 0:00:29]} 35. Nxc5 {[%clk 0:00:02]}  Rxc5 {[%clk 0:00:22]} 36. Ba3 {[%clk 0:00:02]}  Rd5 {[%clk 0:00:22]} 37. Rh5 {[%clk 0:00:03]}  e2 {[%clk 0:00:02]} 38. Bxc5+ {[%clk 0:00:03]}  Rxc5 {[%clk 0:00:03]} 39. Rxc5 {[%clk 0:00:03]}  Nd6 {[%clk 0:00:03]} 40. Rd5 {[%clk 0:00:03]}  Ne4 {[%clk 0:00:03]} 41. Rxd4 {[%clk 0:00:03]}  Nc3+ {[%clk 0:00:02]} 42. Kc2 {[%clk 0:00:04]}  Nd1 {[%clk 0:00:02]} 43. Re1 {[%clk 0:00:04]}  Ne3+ {[%clk 0:00:02]} 44. Kd2 {[%clk 0:00:04]}  Nf5 {[%clk 0:00:02]} 45. Rd3 {[%clk 0:00:05]}  Nd6 {[%clk 0:00:03]} 46. Rxe2 {[%clk 0:00:05]}  g5 {[%clk 0:00:03]} 47. a4 {[%clk 0:00:03]}  f5 {[%clk 0:00:04]} 48. Rc3 {[%clk 0:00:04]}  Ne8 {[%clk 0:00:03]} 49. Rxe8+ {[%clk 0:00:02]}  Kxe8 {[%clk 0:00:03]} 50. Rc5 {[%clk 0:00:03]}  f4 {[%clk 0:00:03]} 51. Rxg5 {[%clk 0:00:04]}  Kd7 {[%clk 0:00:04]} 52. Rf5 {[%clk 0:00:05]}  Ke6 {[%clk 0:00:05]} 53. Rxf4 {[%clk 0:00:05]}  Ke5 {[%clk 0:00:05]} 54. Rc4 {[%clk 0:00:06]}  Kd5 {[%clk 0:00:06]} 55. Kc3 {[%clk 0:00:07]}  c5 {[%clk 0:00:07]} 56. Kd3 {[%clk 0:00:08]}  Kd6 {[%clk 0:00:08]} 57. Ke4 {[%clk 0:00:08]}  Kc6 {[%clk 0:00:09]} 58. Ke5 {[%clk 0:00:09]}  Kb6 {[%clk 0:00:10]} 59. Kd5 {[%clk 0:00:10]}  Ka5 {[%clk 0:00:10]} 60. Kxc5 {[%clk 0:00:10]}  a6 {[%clk 0:00:10]} 61. Kd4 {[%clk 0:00:11]}  Kb6 {[%clk 0:00:10]} 62. Kc3 {[%clk 0:00:12]}  Ka5 {[%clk 0:00:11]} 63. Rg4 {[%clk 0:00:12]} 1-0


[Site "https://www.chess.com"]

[Event "Titled Tuesday Blitz January 31 Late 2023"]
[White "Kravtsiv, Martyn"]
[Black "Krysa, Leandro"]
[WhiteFideId "14113147"]
[BlackFideId "116807"]
[WhiteElo "2598"]
[BlackElo "2541"]
[Result "1-0"]
[Round "05"]
[TimeControl "180+2"]
[Date "2023.01.31"]
[WhiteClock "0:00:46"]
[BlackClock "0:00:02"]

1. e4 {[%clk 0:03:00]}  e5 {[%clk 0:02:59]} 2. Nf3 {[%clk 0:03:00]}  Nf6 {[%clk 0:03:00]} 3. Nc3 {[%clk 0:03:00]}  Nc6 {[%clk 0:02:58]} 4. a4 {[%clk 0:03:00]}  a6 {[%clk 0:02:58]} 5. d4 {[%clk 0:02:59]}  exd4 {[%clk 0:02:58]} 6. Nxd4 {[%clk 0:02:59]}  Bb4 {[%clk 0:02:58]} 7. Nxc6 {[%clk 0:02:59]}  bxc6 {[%clk 0:02:59]} 8. Bd3 {[%clk 0:02:58]}  O-O {[%clk 0:02:59]} 9. O-O {[%clk 0:02:56]}  d5 {[%clk 0:02:59]} 10. Bd2 {[%clk 0:02:54]}  Rb8 {[%clk 0:02:51]} 11. Re1 {[%clk 0:02:44]}  Re8 {[%clk 0:02:40]} 12. h3 {[%clk 0:02:29]}  dxe4 {[%clk 0:02:16]} 13. Nxe4 {[%clk 0:02:28]}  Nxe4 {[%clk 0:02:14]} 14. Bxb4 {[%clk 0:02:24]}  Rxb4 {[%clk 0:02:08]} 15. Rxe4 {[%clk 0:02:20]}  Rbxe4 {[%clk 0:01:52]} 16. Bxe4 {[%clk 0:02:21]}  Qf6 {[%clk 0:01:48]} 17. Qf3 {[%clk 0:02:13]}  Qxb2 {[%clk 0:01:35]} 18. Rd1 {[%clk 0:02:14]}  Be6 {[%clk 0:01:32]} 19. Bxc6 {[%clk 0:02:11]}  Rb8 {[%clk 0:01:31]} 20. Qd3 {[%clk 0:02:04]}  g6 {[%clk 0:01:20]} 21. Qxa6 {[%clk 0:01:48]}  Qxc2 {[%clk 0:01:18]} 22. Bf3 {[%clk 0:01:49]}  Rb1 {[%clk 0:01:04]} 23. Rxb1 {[%clk 0:01:48]}  Qxb1+ {[%clk 0:01:05]} 24. Kh2 {[%clk 0:01:48]}  c5 {[%clk 0:00:59]} 25. a5 {[%clk 0:01:43]}  Qb8+ {[%clk 0:00:56]} 26. g3 {[%clk 0:01:01]}  c4 {[%clk 0:00:53]} 27. Qb6 {[%clk 0:00:55]}  Qc8 {[%clk 0:00:20]} 28. Bb7 {[%clk 0:00:53]}  Qe8 {[%clk 0:00:16]} 29. a6 {[%clk 0:00:47]}  c3 {[%clk 0:00:16]} 30. Qc5 {[%clk 0:00:48]}  Qa4 {[%clk 0:00:05]} 31. a7 {[%clk 0:00:47]}  c2 {[%clk 0:00:02]} 32. a8=Q+ {[%clk 0:00:46]} 1-0


[Site "https://www.chess.com"]

[Event "Titled Tuesday Blitz January 31 Late 2023"]
[White "Zhigalko, Sergei"]
[Black "Tan, Zhongyi"]
[WhiteFideId "13502956"]
[BlackFideId "8603642"]
[WhiteElo "2572"]
[BlackElo "2517"]
[Result "1-0"]
[Round "05"]
[TimeControl "180+2"]
[Date "2023.01.31"]
[WhiteClock "0:00:52"]
[BlackClock "0:00:03"]

1. e4 {[%clk 0:03:00]}  c5 {[%clk 0:02:59]} 2. Nf3 {[%clk 0:03:01]}  d6 {[%clk 0:02:59]} 3. d4 {[%clk 0:03:01]}  cxd4 {[%clk 0:03:00]} 4. Qxd4 {[%clk 0:03:02]}  Nc6 {[%clk 0:02:59]} 5. Bb5 {[%clk 0:03:01]}  Bd7 {[%clk 0:02:59]} 6. Bxc6 {[%clk 0:03:02]}  Bxc6 {[%clk 0:03:00]} 7. Nc3 {[%clk 0:03:02]}  Nf6 {[%clk 0:03:00]} 8. Bg5 {[%clk 0:03:02]}  e6 {[%clk 0:03:00]} 9. O-O-O {[%clk 0:03:02]}  Be7 {[%clk 0:03:00]} 10. Rhe1 {[%clk 0:03:03]}  O-O {[%clk 0:02:59]} 11. Kb1 {[%clk 0:03:03]}  Qa5 {[%clk 0:02:48]} 12. Qd2 {[%clk 0:03:03]}  Rfd8 {[%clk 0:02:26]} 13. Nd4 {[%clk 0:03:02]}  Rac8 {[%clk 0:02:18]} 14. f3 {[%clk 0:03:02]}  Be8 {[%clk 0:02:06]} 15. Nd5 {[%clk 0:02:53]}  Qxd2 {[%clk 0:02:05]} 16. Nxe7+ {[%clk 0:02:53]}  Kf8 {[%clk 0:02:05]} 17. Bxd2 {[%clk 0:02:39]}  Kxe7 {[%clk 0:02:04]} 18. Bb4 {[%clk 0:02:28]}  Nd7 {[%clk 0:00:09]} 19. e5 {[%clk 0:02:13]}  Nc5 {[%clk 0:00:09]} 20. exd6+ {[%clk 0:02:06]}  Kf6 {[%clk 0:00:10]} 21. Nb3 {[%clk 0:01:41]}  Nxb3 {[%clk 0:00:09]} 22. axb3 {[%clk 0:01:42]}  Bc6 {[%clk 0:00:08]} 23. c4 {[%clk 0:01:36]}  b6 {[%clk 0:00:08]} 24. Bc3+ {[%clk 0:01:24]}  Kg6 {[%clk 0:00:08]} 25. Rd4 {[%clk 0:01:25]}  h5 {[%clk 0:00:04]} 26. b4 {[%clk 0:01:25]}  Rd7 {[%clk 0:00:02]} 27. b3 {[%clk 0:01:22]}  Kh7 {[%clk 0:00:03]} 28. Kb2 {[%clk 0:01:21]}  g6 {[%clk 0:00:02]} 29. b5 {[%clk 0:01:20]}  Bb7 {[%clk 0:00:02]} 30. Rd2 {[%clk 0:01:13]}  Rcd8 {[%clk 0:00:03]} 31. Red1 {[%clk 0:01:11]}  Rc8 {[%clk 0:00:03]} 32. Bf6 {[%clk 0:01:08]}  Rc5 {[%clk 0:00:02]} 33. Ra1 {[%clk 0:00:58]}  Rf5 {[%clk 0:00:02]} 34. Be7 {[%clk 0:00:58]}  Bc8 {[%clk 0:00:03]} 35. Kc3 {[%clk 0:00:56]}  e5 {[%clk 0:00:02]} 36. Rda2 {[%clk 0:00:56]}  f6 {[%clk 0:00:01]} 37. Rxa7 {[%clk 0:00:56]}  Kh6 {[%clk 0:00:02]} 38. Rxd7 {[%clk 0:00:52]}  Bxd7 {[%clk 0:00:03]} 39. Ra7 {[%clk 0:00:52]} 1-0


[Site "https://www.chess.com"]

[Event "Titled Tuesday Blitz January 31 Late 2023"]
[White "Nigmatov, Ortik"]
[Black "Moroni, Luca Jr"]
[WhiteFideId "14202131"]
[BlackFideId "865834"]
[WhiteElo "2438"]
[BlackElo "2535"]
[Result "1-0"]
[Round "05"]
[TimeControl "180+2"]
[Date "2023.01.31"]
[WhiteClock "0:00:09"]
[BlackClock "0:00:04"]

1. e4 {[%clk 0:02:59]}  d6 {[%clk 0:02:57]} 2. d4 {[%clk 0:02:57]}  e5 {[%clk 0:02:56]} 3. Nf3 {[%clk 0:02:54]}  exd4 {[%clk 0:02:55]} 4. Nxd4 {[%clk 0:02:54]}  Nf6 {[%clk 0:02:55]} 5. Nc3 {[%clk 0:02:54]}  Be7 {[%clk 0:02:55]} 6. g3 {[%clk 0:02:54]}  O-O {[%clk 0:02:55]} 7. Bg2 {[%clk 0:02:54]}  Re8 {[%clk 0:02:55]} 8. O-O {[%clk 0:02:54]}  Bf8 {[%clk 0:02:54]} 9. h3 {[%clk 0:02:52]}  c6 {[%clk 0:02:53]} 10. Be3 {[%clk 0:02:51]}  a5 {[%clk 0:02:53]} 11. f4 {[%clk 0:02:47]}  Na6 {[%clk 0:02:48]} 12. Nde2 {[%clk 0:01:53]}  Qc7 {[%clk 0:02:36]} 13. g4 {[%clk 0:01:50]}  d5 {[%clk 0:01:47]} 14. e5 {[%clk 0:01:50]}  Bxg4 {[%clk 0:01:46]} 15. hxg4 {[%clk 0:01:49]}  Nxg4 {[%clk 0:01:47]} 16. Bd4 {[%clk 0:01:41]}  Qd8 {[%clk 0:01:29]} 17. Qe1 {[%clk 0:01:30]}  Nb4 {[%clk 0:01:24]} 18. Rc1 {[%clk 0:01:28]}  c5 {[%clk 0:01:20]} 19. Bf2 {[%clk 0:01:28]}  d4 {[%clk 0:01:14]} 20. Ne4 {[%clk 0:01:26]}  d3 {[%clk 0:01:13]} 21. N2g3 {[%clk 0:01:21]}  Nxc2 {[%clk 0:00:59]} 22. Qd2 {[%clk 0:01:19]}  Qh4 {[%clk 0:00:43]} 23. Rfd1 {[%clk 0:01:10]}  c4 {[%clk 0:00:43]} 24. Rxc2 {[%clk 0:00:58]}  dxc2 {[%clk 0:00:41]} 25. Qxc2 {[%clk 0:00:59]}  Rad8 {[%clk 0:00:39]} 26. Rc1 {[%clk 0:00:53]}  b5 {[%clk 0:00:25]} 27. Nf1 {[%clk 0:00:53]}  Qh5 {[%clk 0:00:20]} 28. Bb6 {[%clk 0:00:46]}  Rd3 {[%clk 0:00:19]} 29. a4 {[%clk 0:00:45]}  Qg6 {[%clk 0:00:15]} 30. axb5 {[%clk 0:00:42]}  Qxb6+ {[%clk 0:00:15]} 31. Kh1 {[%clk 0:00:39]}  Qh6+ {[%clk 0:00:15]} 32. Kg1 {[%clk 0:00:39]}  Qxf4 {[%clk 0:00:15]} 33. Qxc4 {[%clk 0:00:37]}  Nxe5 {[%clk 0:00:15]} 34. Qc2 {[%clk 0:00:22]}  h6 {[%clk 0:00:15]} 35. Nh2 {[%clk 0:00:21]}  Red8 {[%clk 0:00:12]} 36. Rf1 {[%clk 0:00:18]}  Qe3+ {[%clk 0:00:12]} 37. Kh1 {[%clk 0:00:18]}  Qd4 {[%clk 0:00:11]} 38. b6 {[%clk 0:00:13]}  Rd1 {[%clk 0:00:10]} 39. b7 {[%clk 0:00:13]}  Rxf1+ {[%clk 0:00:10]} 40. Nxf1 {[%clk 0:00:13]}  Qb4 {[%clk 0:00:06]} 41. Qc8 {[%clk 0:00:13]}  Be7 {[%clk 0:00:04]} 42. Qc7 {[%clk 0:00:09]}  Qd6 {[%clk 0:00:04]} 43. Nxd6 {[%clk 0:00:09]}  Rxd6 {[%clk 0:00:04]} 44. b8=Q+ {[%clk 0:00:09]} 1-0


[Site "https://www.chess.com"]

[Event "Titled Tuesday Blitz January 31 Late 2023"]
[White "Van Foreest, Lucas"]
[Black "Vlassov, Nikolai"]
[WhiteFideId "1039792"]
[BlackFideId "4103360"]
[WhiteElo "2556"]
[BlackElo "2283"]
[Result "1-0"]
[Round "05"]
[TimeControl "180+2"]
[Date "2023.01.31"]
[WhiteClock "0:00:09"]
[BlackClock "0:00:01"]

1. e4 {[%clk 0:02:36]}  Nc6 {[%clk 0:02:59]} 2. Qg4 {[%clk 0:02:35]}  d5 {[%clk 0:02:55]} 3. Qh4 {[%clk 0:02:33]}  dxe4 {[%clk 0:02:53]} 4. Nc3 {[%clk 0:02:31]}  Nd4 {[%clk 0:02:50]} 5. Qxe4 {[%clk 0:02:25]}  Bf5 {[%clk 0:02:45]} 6. Qxb7 {[%clk 0:02:25]}  Rb8 {[%clk 0:02:43]} 7. Qxa7 {[%clk 0:02:16]}  Nxc2+ {[%clk 0:02:41]} 8. Kd1 {[%clk 0:02:16]}  Nxa1 {[%clk 0:02:39]} 9. Bb5+ {[%clk 0:02:16]}  Rxb5 {[%clk 0:02:08]} 10. Nxb5 {[%clk 0:02:17]}  f6 {[%clk 0:02:08]} 11. Nf3 {[%clk 0:01:27]}  Bc2+ {[%clk 0:02:00]} 12. Ke1 {[%clk 0:01:27]}  Bd3 {[%clk 0:01:59]} 13. Nxc7+ {[%clk 0:01:03]}  Kf7 {[%clk 0:01:59]} 14. b3 {[%clk 0:01:03]}  Nc2+ {[%clk 0:01:46]} 15. Kd1 {[%clk 0:01:02]}  Nb4 {[%clk 0:01:46]} 16. Ba3 {[%clk 0:00:50]}  Nd5 {[%clk 0:01:40]} 17. Nxd5 {[%clk 0:00:46]}  Qxd5 {[%clk 0:01:40]} 18. Re1 {[%clk 0:00:43]}  Be4 {[%clk 0:01:28]} 19. Nd4 {[%clk 0:00:42]}  Bxg2 {[%clk 0:01:26]} 20. Ne6 {[%clk 0:00:34]}  Qf5 {[%clk 0:00:56]} 21. Kc1 {[%clk 0:00:25]}  h5 {[%clk 0:00:28]} 22. Kb2 {[%clk 0:00:18]}  Bd5 {[%clk 0:00:14]} 23. Nxf8 {[%clk 0:00:15]}  Kxf8 {[%clk 0:00:15]} 24. Bxe7+ {[%clk 0:00:13]}  Nxe7 {[%clk 0:00:15]} 25. Rxe7 {[%clk 0:00:11]}  Qg5 {[%clk 0:00:11]} 26. Rc7 {[%clk 0:00:09]}  Qxd2+ {[%clk 0:00:10]} 27. Ka3 {[%clk 0:00:09]}  Bb7 {[%clk 0:00:01]} 28. Qb8+ {[%clk 0:00:09]} 1-0


[Site "https://www.chess.com"]

[Event "Titled Tuesday Blitz January 31 Late 2023"]
[White "Kanakaris, Georgios"]
[Black "Galchenko, Matvey"]
[WhiteFideId "4209460"]
[BlackFideId "24175480"]
[WhiteElo "2391"]
[BlackElo "2438"]
[Result "0-1"]
[Round "05"]
[TimeControl "180+2"]
[Date "2023.01.31"]
[WhiteClock "0:00:04"]
[BlackClock "0:00:07"]

1. d4 {[%clk 0:03:00]}  Nf6 {[%clk 0:02:57]} 2. Nf3 {[%clk 0:03:00]}  c5 {[%clk 0:02:57]} 3. d5 {[%clk 0:03:00]}  b5 {[%clk 0:02:57]} 4. a4 {[%clk 0:02:59]}  Bb7 {[%clk 0:02:53]} 5. axb5 {[%clk 0:02:54]}  Bxd5 {[%clk 0:02:50]} 6. Nc3 {[%clk 0:02:45]}  Bb7 {[%clk 0:02:50]} 7. Bg5 {[%clk 0:02:44]}  d5 {[%clk 0:02:44]} 8. e3 {[%clk 0:02:36]}  Nbd7 {[%clk 0:02:42]} 9. Be2 {[%clk 0:02:33]}  e6 {[%clk 0:02:37]} 10. O-O {[%clk 0:02:33]}  Be7 {[%clk 0:02:35]} 11. Ra4 {[%clk 0:02:23]}  O-O {[%clk 0:02:28]} 12. Qa1 {[%clk 0:02:22]}  Qb6 {[%clk 0:02:28]} 13. b3 {[%clk 0:02:01]}  Rfc8 {[%clk 0:02:23]} 14. Rd1 {[%clk 0:01:41]}  h6 {[%clk 0:02:11]} 15. Bh4 {[%clk 0:01:39]}  Rd8 {[%clk 0:01:40]} 16. Ra2 {[%clk 0:01:16]}  Rdc8 {[%clk 0:01:26]} 17. Ra4 {[%clk 0:01:13]}  Bd6 {[%clk 0:01:25]} 18. Bg3 {[%clk 0:01:09]}  e5 {[%clk 0:01:20]} 19. Rh4 {[%clk 0:00:59]}  d4 {[%clk 0:01:18]} 20. Na4 {[%clk 0:00:56]}  Qc7 {[%clk 0:01:15]} 21. exd4 {[%clk 0:00:53]}  cxd4 {[%clk 0:01:13]} 22. Bc4 {[%clk 0:00:52]}  Nf8 {[%clk 0:00:53]} 23. Qc1 {[%clk 0:00:39]}  Ng6 {[%clk 0:00:41]} 24. Rh3 {[%clk 0:00:39]}  Bd5 {[%clk 0:00:38]} 25. Nb2 {[%clk 0:00:35]}  Ba3 {[%clk 0:00:29]} 26. Nxd4 {[%clk 0:00:19]}  Bxc4 {[%clk 0:00:18]} 27. bxc4 {[%clk 0:00:17]}  Bxb2 {[%clk 0:00:17]} 28. Qxb2 {[%clk 0:00:17]}  Qd7 {[%clk 0:00:17]} 29. Bxe5 {[%clk 0:00:06]}  Nxe5 {[%clk 0:00:17]} 30. Re1 {[%clk 0:00:06]}  Nxc4 {[%clk 0:00:17]} 31. Qa1 {[%clk 0:00:06]}  Re8 {[%clk 0:00:17]} 32. Rf1 {[%clk 0:00:06]}  Nd2 {[%clk 0:00:16]} 33. Rd1 {[%clk 0:00:06]}  Nde4 {[%clk 0:00:14]} 34. Nc6 {[%clk 0:00:06]}  Qf5 {[%clk 0:00:12]} 35. Rf3 {[%clk 0:00:06]}  Qc5 {[%clk 0:00:11]} 36. h3 {[%clk 0:00:05]}  a6 {[%clk 0:00:11]} 37. Nd4 {[%clk 0:00:04]}  axb5 {[%clk 0:00:11]} 38. Qc1 {[%clk 0:00:04]}  Nc3 {[%clk 0:00:11]} 39. Rd2 {[%clk 0:00:03]}  b4 {[%clk 0:00:11]} 40. Nf5 {[%clk 0:00:03]}  Ne2+ {[%clk 0:00:09]} 41. Rxe2 {[%clk 0:00:03]}  Rxe2 {[%clk 0:00:10]} 42. Nxh6+ {[%clk 0:00:03]}  gxh6 {[%clk 0:00:10]} 43. Qxh6 {[%clk 0:00:04]}  Ra1+ {[%clk 0:00:10]} 44. Kh2 {[%clk 0:00:04]}  Qe5+ {[%clk 0:00:10]} 45. Rg3+ {[%clk 0:00:04]}  Ng4+ {[%clk 0:00:05]} 46. hxg4 {[%clk 0:00:02]}  Qh8 {[%clk 0:00:05]} 47. Rh3 {[%clk 0:00:02]}  Qxh6 {[%clk 0:00:05]} 48. Rxh6 {[%clk 0:00:03]}  Rxf2 {[%clk 0:00:06]} 49. Rb6 {[%clk 0:00:03]}  Rxc2 {[%clk 0:00:05]} 50. Rxb4 {[%clk 0:00:03]}  Raa2 {[%clk 0:00:05]} 51. Rb8+ {[%clk 0:00:03]}  Kg7 {[%clk 0:00:06]} 52. Kh3 {[%clk 0:00:04]}  Rxg2 {[%clk 0:00:06]} 53. Kh4 {[%clk 0:00:05]}  Rh2+ {[%clk 0:00:06]} 54. Kg5 {[%clk 0:00:05]}  Ra5+ {[%clk 0:00:07]} 55. Kf4 {[%clk 0:00:05]}  Rg2 {[%clk 0:00:07]} 56. Rb4 {[%clk 0:00:04]}  Ra3 {[%clk 0:00:08]} 57. Kf5 {[%clk 0:00:04]}  Rf3+ {[%clk 0:00:08]} 58. Kg5 {[%clk 0:00:04]}  f6+ {[%clk 0:00:06]} 59. Kh4 {[%clk 0:00:04]}  Rh2# {[%clk 0:00:07]} 0-1


[Site "https://www.chess.com"]

[Event "Titled Tuesday Blitz January 31 Late 2023"]
[White "Richter, Paul"]
[Black "Riehle, Marco"]
[WhiteFideId "2046350"]
[BlackFideId "12904392"]
[WhiteElo "2171"]
[BlackElo "2368"]
[Result "0-1"]
[Round "05"]
[TimeControl "180+2"]
[Date "2023.01.31"]
[WhiteClock "0:00:13"]
[BlackClock "0:02:20"]

1. e4 {[%clk 0:02:59]}  e5 {[%clk 0:02:59]} 2. Nf3 {[%clk 0:02:59]}  Nf6 {[%clk 0:03:00]} 3. Nxe5 {[%clk 0:02:58]}  Nxe4 {[%clk 0:02:59]} 4. Qe2 {[%clk 0:02:57]}  Qe7 {[%clk 0:02:59]} 5. Qxe4 {[%clk 0:02:57]}  d6 {[%clk 0:03:00]} 6. d4 {[%clk 0:02:52]}  dxe5 {[%clk 0:03:00]} 7. dxe5 {[%clk 0:02:52]}  Nc6 {[%clk 0:03:00]} 8. Nc3 {[%clk 0:02:42]}  Qxe5 {[%clk 0:03:00]} 9. Qxe5+ {[%clk 0:02:42]}  Nxe5 {[%clk 0:03:00]} 10. Bf4 {[%clk 0:02:37]}  f6 {[%clk 0:03:00]} 11. Bxe5 {[%clk 0:02:33]}  fxe5 {[%clk 0:03:00]} 12. Bc4 {[%clk 0:02:27]}  Bd7 {[%clk 0:02:58]} 13. O-O-O {[%clk 0:02:24]}  O-O-O {[%clk 0:02:59]} 14. f3 {[%clk 0:02:19]}  Bd6 {[%clk 0:02:56]} 15. Ne4 {[%clk 0:02:14]}  Bc6 {[%clk 0:02:56]} 16. Rhe1 {[%clk 0:02:10]}  h6 {[%clk 0:02:53]} 17. Be6+ {[%clk 0:01:46]}  Kb8 {[%clk 0:02:52]} 18. c3 {[%clk 0:01:40]}  Rhf8 {[%clk 0:02:49]} 19. Bd5 {[%clk 0:01:36]}  Bd7 {[%clk 0:02:46]} 20. Rd2 {[%clk 0:01:28]}  Bf5 {[%clk 0:02:41]} 21. Red1 {[%clk 0:01:26]}  Be7 {[%clk 0:02:40]} 22. Kc2 {[%clk 0:00:49]}  Bg5 {[%clk 0:02:35]} 23. Rd3 {[%clk 0:00:49]}  c6 {[%clk 0:02:33]} 24. Bc4 {[%clk 0:00:43]}  Bxe4 {[%clk 0:02:33]} 25. fxe4 {[%clk 0:00:37]}  Rf2+ {[%clk 0:02:33]} 26. Kb3 {[%clk 0:00:35]}  Rxd3 {[%clk 0:02:34]} 27. Rxd3 {[%clk 0:00:32]}  Rxg2 {[%clk 0:02:34]} 28. Rd7 {[%clk 0:00:21]}  Bc1 {[%clk 0:02:33]} 29. Be6 {[%clk 0:00:18]}  b5 {[%clk 0:02:30]} 30. c4 {[%clk 0:00:16]}  Rxb2+ {[%clk 0:02:30]} 31. Kc3 {[%clk 0:00:16]}  bxc4 {[%clk 0:02:29]} 32. Rxg7 {[%clk 0:00:13]}  Rxa2 {[%clk 0:02:22]} 33. Kxc4 {[%clk 0:00:12]}  Rxh2 {[%clk 0:02:22]} 34. Kc5 {[%clk 0:00:12]}  Rc2+ {[%clk 0:02:20]} 35. Kd6 {[%clk 0:00:13]}  Ba3+ {[%clk 0:02:20]} 0-1


[Site "https://www.chess.com"]